[Event "16th Serbian-ch Women 2022"]
[Site "Bajina Basta"]
[Date "2022.12.11"]
[Round "6.3"]
[White "Srdanovic, Jovana"]
[Black "Chelushkina, Irina"]
[Result "1/2-1/2"]
[ECO "D32"]
[WhiteElo "2189"]
[BlackElo "2173"]
[Annotator "TA"]
[PlyCount "50"]
[EventDate "2022.12.06"]
[EventType "tourn"]
[EventCountry "SRB"]
[SourceTitle "playchess.com"]
[Source "ChessBase"]
[SourceQuality "1"]
[TimeControl "40/5400+30:1800+30"]

{[%evp 13,50,0,0,0,0,-14,0,0,0,-9,0,0,0,0,-3,-7,12,-31,-20,-43,-31,-35,-26,-54,-57,-60,-79,-86,-40,-55,-42,-40,43,54,217,135,135,96,77]} 1. d4 {[%emt 0:00:03]} e6 {[%emt 0:00:10]} 2. c4 {[%emt 0:00:15]} d5 {[%emt 0:00:05]} 3. Nc3 {[%emt 0:00:23]} c5 {[%emt 0:00:05]} 4. cxd5 {[%emt 1:31:49]} exd5 {[%emt 0:00:04]} 5. Nf3 {[%emt 0:00:00]} Nc6 {[%emt 0:00:04]} 6. Bf4 {[%emt 0:00:00]} Nf6 {[%emt 0:02:22]} 7. e3 {[%emt 0:00:00]} c4 {[%emt 0:01:44] 7...Be7 is not played anymore.} 8. Be2 {[%emt 0:00:00] D32: Tarrasch Defence: Sidelines and lines without g3.} Bb4 {[%emt 0:08:08]} 9. O-O {[%emt 0:00:00]} Bxc3 {[%emt 0:00:49]} 10. bxc3 {[%emt 0:00:00] The position is equal.} Ne4 {[%emt 0:00:02] Prevents Bg5.} 11. Qc2 {[%emt 0:00:00]} Bf5 {[%emt 0:04:48][%cal Oe4g3] Threatening ...Ng3!} 12. Qb2 {[%emt 0:00:00]} O-O {[%emt 0:01:55]} 13. Nd2 {[%emt 0:00:00]} Nxd2 {[%emt 0:01:19]} 14. Qxd2 {[%emt 0:00:00]} b5 {[%emt 0:02:43]} 15. f3 {[%emt 0:00:00]} Re8 {[%emt 0:01:09] [#]} 16. Rae1 $146 {[%emt 0:00:00]} ({Predecessor:} 16. Rfe1 a6 17. Bd1 Ra7 18. Bg3 Rae7 19. Bh4 f6 20. Bf2 Qa5 21. a3 Qd8 22. a4 {1-0 (46) Wahono,A (2390)-Tuchenhagen,A (2182) Shenyang 1999}) 16... a6 {[%emt 0:11:17]} 17. Bg3 {[%emt 0:00:00]} Ra7 {[%emt 0:01:38]} 18. Kh1 {[%emt 0:00:00]} Rb7 {[%emt 0:02:50]} 19. Bd1 {[%emt 0:00:00][%cal Oe3e4]} Bd3 {[%emt 0:00:16] Inhibits e4.} 20. Rg1 {[%emt 0:00:00][%cal Oe3e4]} Qa5 {[%emt 0:19:01] Inhibits e4.} (20... b4 $17) 21. e4 {[%emt 0:00:00]} dxe4 {[%emt 0:00:54] White must now prevent ...b4.} 22. d5 {[%emt 0:00:00][%cal Bd4d5,Bd5d6][%mdl 32] Prevents b4.} Nd8 {[%emt 0:00:43]} ({Better is} 22... Ne5 $15) 23. fxe4 $14 {[%emt 0:00:00]} Bxe4 $2 {[%emt 0:08:48] [#]} (23... b4 $14) 24. d6 {[%emt 0:01:48]} f5 {[%emt 0:05:18]} 25. Bf3 {[%emt 0:02:32][%mdl 1024] Hoping for Bxe4. White has strong compensation.} b4 {[%emt 0:26:48] Weighted Error Value: White=0.18 (very precise) /Black=0.25 (precise)} 1/2-1/2

[Event "16th Serbian-ch Women 2022"]
[Site "Bajina Basta"]
[Date "2022.12.11"]
[Round "6.4"]
[White "Grozdanovic, Anastasia"]
[Black "Vujcic, Milena"]
[Result "1-0"]
[ECO "D96"]
[WhiteElo "1870"]
[BlackElo "2029"]
[Annotator "TA"]
[PlyCount "47"]
[EventDate "2022.12.06"]
[EventType "tourn"]
[EventCountry "SRB"]
[SourceTitle "playchess.com"]
[Source "ChessBase"]
[SourceQuality "1"]
[TimeControl "40/5400+30:1800+30"]

{[%evp 15,47,46,43,30,32,0,37,26,36,18,19,0,20,0,39,31,407,385,387,381,961,962,29998,1234,1233,1233,1175,1181,1608,1252,1248,1232,1290,803]} 1. d4 {[%emt 0:00:08]} Nf6 {[%emt 0:00:06]} 2. c4 {[%emt 0:00:07]} g6 {[%emt 0:03:22]} 3. Nc3 {[%emt 0:00:27]} d5 {[%emt 0:00:06]} 4. Nf3 {[%emt 0:00:08]} Bg7 {[%emt 0:00:46]} 5. Qb3 {[%emt 0:00:13]} c6 {[%emt 0:03:49]} 6. cxd5 {[%emt 0:00:20]} cxd5 {[%emt 0:00:07]} 7. Bg5 {[%emt 0:04:59]} Nc6 {[%emt 0:08:41] has lost popularity (7...0-0).} 8. e3 {[%emt 0:08:26]} e6 {[%emt 0:16:22]} 9. Ne5 {[%emt 0:14:22] D96: Grünfeld: Russian System (5 Qb3): sidelines.} O-O {[%emt 0:03:08] [#]} 10. Bb5 $146 {[%emt 0:03:19]} ({Predecessor:} 10. Be2 Qb6 11. Qxb6 axb6 12. f4 h6 13. Bh4 Nh7 14. O-O g5 15. Bg3 f5 16. Nb5 Bxe5 17. fxe5 {1-0 (30) Gulko,B (2583)-Andrianov,N (2482) Philadelphia 2003}) 10... Na5 {[%emt 0:03:03]} 11. Qc2 {[%emt 0:07:42] White is slightly better.} a6 {[%emt 0:00:46]} 12. Bd3 {[%emt 0:00:07]} b5 {[%emt 0:02:43]} 13. O-O {[%emt 0:07:22]} Qb6 {[%emt 0:09:20]} 14. b3 {[%emt 0:05:32]} Ra7 {[%emt 0:02:32]} 15. Rac1 $36 {[%emt 0:03:43][%mdl 2048] White has some pressure.} Ne4 $2 {[%emt 0:06:50][%mdl 8192] This costs Black the game.} (15... Nd7 $1 $14) 16. Bxe4 $18 {[%emt 0:07:03]} ({Not} 16. Nxe4 dxe4 17. Bxe4 Bb7 18. Bxb7 Qxb7 $18) 16... dxe4 {[%emt 0:00:20]} 17. Nxe4 {[%emt 0:01:00]} h6 $2 {[%emt 0:16:55]} (17... f5 18. Nf6+ Bxf6 19. Bxf6 Nc4 20. bxc4 Rxf6) 18. Nf6+ {[%emt 0:04:31] Pair of Knights!} Kh8 {[%emt 0:00:16] [#]} 19. Nxg6+ $1 {[%emt 0:00:16][%mdl 512]} fxg6 {[%emt 0:00:25] White is clearly winning.} 20. Qxg6 {[%emt 0:00:05][%csl Gf6][%cal Rg6h7]} Rxf6 {[%emt 0:04:11]} 21. Bxf6 {[%emt 0:00:53]} Nc6 {[%emt 0:02:47]} 22. Qe8+ {[%emt 0:02:52]} Kh7 {[%emt 0:00:04]} 23. Bxg7 {[%emt 0:01:23] Qh8+ is the strong threat.} Rxg7 {[%emt 0:00:05]} 24. Qxc8 {[%emt 0:00:58] Weighted Error Value: White=0.14 (very precise) /Black=1.07} 1-0

[Event "16th Serbian-ch Women 2022"]
[Site "Bajina Basta"]
[Date "2022.12.11"]
[Round "6.5"]
[White "Dimitrijevic, Andjela"]
[Black "Bojicic, Andjela"]
[Result "0-1"]
[ECO "B08"]
[WhiteElo "1993"]
[BlackElo "2117"]
[Annotator "TA"]
[PlyCount "132"]
[EventDate "2022.12.06"]
[EventType "tourn"]
[EventCountry "SRB"]
[SourceTitle "playchess.com"]
[Source "ChessBase"]
[SourceQuality "1"]
[TimeControl "40/5400+30:1800+30"]

{[%evp 19,132,26,26,23,40,0,10,-5,16,0,21,-34,0,-19,5,-80,-63,-66,-26,-145,-135,-157,-162,-154,-159,-170,-172,-168,-153,-170,0,-164,-157,-156,-160,-158,-145,-183,-170,-196,-185,-181,-184,-237,-249,-227,-188,-190,-152,-150,-146,-164,-132,-152,-98,-123,-123,-148,-120,-140,-135,-170,-155,-236,-219,-239,-234,-456,-433,-401,-368,-372,-368,-459,-320,-308,-309,-297,-296,-282,-288,-289,-271,-356,-342,-346,-328,-454,-432,-443,-381,-443,-455,-515,-460,-365,0,-660,-649,-649,-617,-558,-491,-1281,-1263,-29964,-29964,-29994,-29993,-29993,-29994,-29998,-29990,-29996,-29997]} 1. e4 {[%emt 0:00:07]} g6 {[%emt 0:00:06]} 2. d4 {[%emt 0:00:43]} Bg7 {[%emt 0:00:09]} 3. Nc3 {[%emt 0:00:22]} c6 {[%emt 0:00:35]} 4. Nf3 {[%emt 0:01:18]} d6 {[%emt 0:00:26]} 5. Be3 {[%emt 0:04:07]} Nf6 {[%emt 0:00:31]} 6. h3 {[%emt 0:01:00]} O-O {[%emt 0:01:31]} 7. a4 {[%emt 0:01:04]} Nbd7 {[%emt 0:00:44]} 8. Be2 {[%emt 0:03:53]} Qc7 {[%emt 0:00:29]} 9. O-O {[%emt 0:00:41]} b6 {[%emt 0:03:03]} 10. Qd2 {[%emt 0:09:54]} Bb7 {[%emt 0:02:13]} 11. Rfd1 {[%emt 0:03:41] B08: Pirc Defence: Classical System.} a6 {[%emt 0:06:12] [#]} 12. Qe1 $146 {[%emt 0:15:16][%cal Oe4e5]} ({Predecessor:} 12. e5 dxe5 13. dxe5 Nxe5 14. Nxe5 Qxe5 15. Bxb6 Nd5 16. Bd4 Qxd4 17. Qxd4 Bxd4 18. Rxd4 e5 {½-½ (78) Bock,S (2545)-Ludgate,A (2494) ICCF email 2015}) 12... b5 {[%emt 0:13:16]} 13. Nd2 {[%emt 0:01:37][%cal Ra4b5] The position is equal.} e5 {[%emt 0:08:43]} (13... b4 $5 {[%cal Rb4c3]} 14. Na2 c5 $11) 14. dxe5 {[%emt 0:00:29]} dxe5 {[%emt 0:01:15]} 15. a5 {[%emt 0:01:36]} (15. Na2 $11) 15... c5 {[%emt 0:04:18]} 16. Bf3 {[%emt 0:00:16]} Rfe8 {[%emt 0:06:32]} 17. Rdc1 {[%emt 0:02:40]} (17. Bg5 $11) 17... Rad8 {[%emt 0:03:44]} 18. g4 {[%emt 0:08:41]} Nf8 {[%emt 0:09:50]} 19. Ne2 {[%emt 0:03:58]} (19. g5 $11 N6d7 20. Nd5 Bxd5 21. exd5) 19... Ne6 $17 {[%emt 0:02:02]} 20. Ng3 {[%emt 0:03:18]} Nf4 {[%emt 0:03:25]} 21. Qf1 {[%emt 0:01:09]} Nd7 {[%emt 0:02:17]} 22. c4 {[%emt 0:02:59]} b4 {[%emt 0:00:50]} 23. Nb3 {[%emt 0:02:14]} Ne6 {[%emt 0:01:28]} 24. Bg2 {[%emt 0:02:04]} Nf4 $2 {[%emt 0:02:39] [#]} (24... Ndf8 $19 {Threatens to win with ...Nd4.} 25. Rd1 Nd4 26. Nxd4 exd4) 25. Bh1 $2 {[%emt 0:05:45]} (25. Bf3 $1 $11 {and White is okay.}) 25... Bf8 {[%emt 0:00:17]} 26. Rd1 {[%emt 0:06:47]} Bd6 {[%emt 0:04:43]} 27. Ne2 {[%emt 0:07:25]} Ne6 {[%emt 0:02:02]} 28. Nd2 {[%emt 0:03:51]} Nd4 {[%emt 0:01:25]} 29. Rdc1 {[%emt 0:00:12]} Nf8 {[%emt 0:02:09][%cal Bd7f8,Bf8e6,Be6d4][%mdl 32]} 30. Bg5 {[%emt 0:00:18]} Be7 {[%emt 0:01:20]} 31. Bh6 {[%emt 0:03:33]} (31. Bxe7 {keeps fighting.} Qxe7 32. Nxd4 exd4 33. f4) 31... Nfe6 $19 {[%emt 0:02:14]} 32. Nxd4 {[%emt 0:02:03]} Nxd4 {[%emt 0:00:53]} ({Worse is} 32... Rxd4 33. Be3) 33. Be3 {[%emt 0:00:27]} Ne6 {[%emt 0:02:46]} 34. Nb3 {[%emt 0:00:23]} Bd6 {[%emt 0:02:43]} 35. Bg2 {[%emt 0:01:28]} Qe7 {[%emt 0:02:34]} 36. f3 {[%emt 0:00:15]} Qf6 {[%emt 0:03:00]} (36... Nd4 $142 37. Nd2 f5) 37. Qf2 {[%emt 0:00:36][%cal Rb3c5]} Nd4 {[%emt 0:01:44]} 38. Nd2 {[%emt 0:00:56]} Bc7 {[%emt 0:01:05]} 39. Bf1 {[%emt 0:01:48]} Rd7 {[%emt 0:01:48] Black has more active pieces.} 40. g5 {[%emt 0:00:50]} Qd8 {[%emt 0:01:51]} 41. Ra2 {[%emt 0:08:42]} (41. h4 $17) 41... Bxa5 {[%emt 0:10:24]} 42. Rca1 {[%emt 0:08:39]} Bb6 {[%emt 0:01:49]} 43. Rxa6 $2 {[%emt 0:04:23]} (43. h4) 43... Bxa6 {[%emt 0:00:48]} 44. Rxa6 {[%emt 0:00:15]} Ra7 {[%emt 0:03:48]} 45. Rxa7 {[%emt 0:00:28]} Bxa7 {[%emt 0:00:08]} 46. h4 {[%emt 0:03:54]} Qd7 {[%emt 0:05:50]} 47. Bxd4 {[%emt 0:01:23]} cxd4 {[%emt 0:01:07]} (47... Qxd4 $2 {perishes.} 48. Qxd4 cxd4 49. Kf2 $19) (47... exd4 $2 {is the wrong capture.} 48. f4 $19) 48. Bd3 {[%emt 0:01:00]} Bb6 {[%emt 0:00:50]} 49. Nb3 {[%emt 0:01:06]} Qa7 {[%emt 0:01:47]} 50. Qd2 {[%emt 0:04:18]} Bc5 {[%emt 0:00:24]} 51. f4 {[%emt 0:01:30]} exf4 {[%emt 0:01:31]} 52. Qxf4 {[%emt 0:00:01]} Qe7 {[%emt 0:00:49]} 53. Nd2 {[%emt 0:01:04]} Bd6 {[%emt 0:01:14]} 54. Qf2 {[%emt 0:00:26]} Rd8 {[%emt 0:04:25]} 55. Nf3 {[%emt 0:00:32]} Bf4 {[%emt 0:01:16]} 56. Qe2 {[%emt 0:00:29]} Be3+ {[%emt 0:00:41]} 57. Kg2 {[%emt 0:00:08]} Bf4 $2 {[%emt 0:01:50]} (57... Qe6 $19 {...Qg4+ is the strong threat.} 58. Kg3 Ra8) 58. Nh2 {[%emt 0:00:55][%mdl 8192]} (58. Kg1 $11 Qd7 59. Qg2) 58... Bxh2 {[%emt 0:00:07]} 59. Kxh2 {[%emt 0:00:01][%mdl 4096] Endgame KQR-KQB} Qe5+ {[%emt 0:00:10]} 60. Kh3 {[%emt 0:00:30]} Ra8 {[%emt 0:00:54] [#] Hoping for ...Ra1.} 61. Qg4 {[%emt 0:00:50]} (61. Qf2 $142 Ra2 62. Kg4) 61... Ra1 {[%emt 0:01:01] ( -> ...Rh1+)} 62. Qg2 {[%emt 0:00:39] Prevents Rh1+.} Re1 {[%emt 0:00:28] Black mates.} 63. Bc2 {[%emt 0:00:27]} Re3+ {[%emt 0:00:44]} 64. Kg4 {[%emt 0:00:22]} d3 {[%emt 0:00:15]} 65. Bb1 {[%emt 0:00:27]} Rxe4+ {[%emt 0:00:18]} 66. Kh3 {[%emt 0:00:16]} Re3+ {[%emt 0:00:04] Weighted Error Value: White=0.47/Black=0.31} 0-1

[Event "16th Serbian-ch Women 2022"]
[Site "Bajina Basta"]
[Date "2022.12.12"]
[Round "7.1"]
[White "Bojicic, Andjela"]
[Black "Eric, Jovana"]
[Result "0-1"]
[ECO "E11"]
[WhiteElo "2117"]
[BlackElo "2245"]
[Annotator "TA"]
[PlyCount "108"]
[EventDate "2022.12.06"]
[EventType "tourn"]
[EventCountry "SRB"]
[SourceTitle "playchess.com"]
[Source "ChessBase"]
[SourceQuality "1"]
[TimeControl "40/5400+30:1800+30"]

{[%evp 10,108,23,27,37,28,29,21,31,0,0,0,0,6,11,5,14,8,8,8,8,16,9,10,31,0,0,-40,2,0,8,23,50,44,69,15,7,18,12,16,48,16,16,16,29,0,21,0,30,16,95,31,37,0,0,-60,-58,-49,-45,-44,22,7,35,35,18,21,97,0,0,0,0,0,6,-72,-66,-72,-70,-179,-173,-181,-177,-262,-274,-281,-289,-810,-233,-235,0,-169,-169,-169,-169,-169,-169,-169,-180,-213,-213,-1759,-627]} 1. d4 {[%emt 0:00:03]} Nf6 {[%emt 0:00:09]} 2. c4 {[%emt 0:00:18]} e6 {[%emt 0:00:17]} 3. Nf3 {[%emt 0:00:42]} Bb4+ {[%emt 0:00:19]} 4. Bd2 {[%emt 0:00:07]} Qe7 {[%emt 0:00:18]} 5. g3 {[%emt 0:00:53]} Bxd2+ {[%emt 0:01:15]} 6. Qxd2 {[%emt 0:01:31]} d6 {[%emt 0:00:22] E11: Bogo-Indian.} 7. Nc3 {[%emt 0:03:56]} O-O {[%emt 0:00:44]} 8. e4 {[%emt 0:02:44]} e5 {[%emt 0:00:56] The position is equal.} 9. d5 {[%emt 0:02:20] [#]} a5 $146 {[%emt 0:00:45]} ({Predecessor:} 9... Bg4 10. Bg2 Nbd7 11. O-O Nc5 12. Rfe1 a5 13. Qc2 Nfd7 14. Nd2 Bh5 15. Nb3 Bg6 16. Nxc5 Nxc5 {0-1 (32) Machlik,M-Papathanasiou,E (1792) Batumi 2010}) 10. Bg2 {[%emt 0:01:21]} Na6 {[%emt 0:00:35]} 11. O-O {[%emt 0:02:30]} Nc5 {[%emt 0:00:28]} 12. Ne1 {[%emt 0:03:45]} Ng4 {[%emt 0:07:00]} 13. Nd3 {[%emt 0:08:31]} Nxd3 {[%emt 0:02:07]} 14. Qxd3 {[%emt 0:00:05]} f5 {[%emt 0:00:07]} 15. exf5 {[%emt 0:11:07]} Bxf5 {[%emt 0:00:23]} 16. Qd2 {[%emt 0:05:18]} Nf6 {[%emt 0:04:18]} 17. Rfe1 {[%emt 0:02:09]} Qd7 {[%emt 0:05:27]} 18. Ne4 {[%emt 0:10:10]} Ng4 {[%emt 0:04:55]} 19. Re2 {[%emt 0:04:28]} Nh6 {[%emt 0:02:23]} 20. Ng5 {[%emt 0:03:37]} Kh8 {[%emt 0:09:50]} (20... Nf7 {is interesting.} 21. Ne6 Rfe8 22. c5 Bg4) 21. c5 {[%emt 0:06:24]} Nf7 {[%emt 0:06:55]} 22. Rc1 {[%emt 0:06:33]} (22. Ne6 $1 $14) 22... Nxg5 $11 {[%emt 0:03:16]} 23. Qxg5 {[%emt 0:00:07]} Qb5 {[%emt 0:02:05]} 24. Qd2 {[%emt 0:02:58]} Rae8 {[%emt 0:04:30]} 25. cxd6 {[%emt 0:03:58]} cxd6 {[%emt 0:00:06]} 26. Re3 {[%emt 0:00:21]} a4 {[%emt 0:01:48] Prevents Rb3.} 27. Rec3 {[%emt 0:02:57]} (27. Bf1 $5 {[%cal Rf1b5]} Qb6 28. Rc4 $11) 27... h6 {[%emt 0:06:30]} 28. h4 {[%emt 0:00:18]} (28. Rc4 $5 {[%cal Rg2f1]}) 28... Qb6 {[%emt 0:01:05]} 29. Rc4 {[%emt 0:01:18]} e4 {[%emt 0:07:14]} (29... Qa6 $11) 30. R1c3 {[%emt 0:04:30]} (30. Re1 $16) 30... Qa5 $14 {[%emt 0:09:43]} 31. Qd4 {[%emt 0:04:29]} Re5 {[%emt 0:00:15][%cal Be8e5,Be5d5,Bd5d1,Bd1b1][%mdl 32]} 32. Rxa4 {[%emt 0:02:13]} (32. Rc5 $11 Qb6 33. R3c4) 32... Rxd5 $15 {[%emt 0:01:34]} 33. Qc4 {[%emt 0:04:22]} Rd1+ {[%emt 0:00:28]} 34. Kh2 {[%emt 0:00:03] [#]} Qb6 {[%emt 0:02:14]} (34... b5 $1 $15 35. Rxa5 bxc4) 35. Qe2 $1 $11 {[%emt 0:00:22]} Rb1 {[%emt 0:02:58]} (35... Ra1 $5 {[%cal Rf5d7]}) 36. Rb3 {[%emt 0:00:49]} Qc6 {[%emt 0:01:03]} 37. Rc4 {[%emt 0:00:25]} Qa6 {[%emt 0:03:50]} (37... Qd5 $11) 38. Ra3 {[%emt 0:01:05]} (38. Bxe4 $16 Bxe4 39. Rxe4 (39. Qxe4 Rxf2+ 40. Kh3 Rh1+ 41. Kg4 Rf8 $11)) 38... Rxb2 {[%emt 0:01:03]} 39. Qxb2 {[%emt 0:00:03] White threatens Rc7 and mate.} Qxc4 {[%emt 0:00:05]} 40. Qxb7 {[%emt 0:00:32]} Qc5 {[%emt 0:03:10]} 41. Qb2 {[%emt 0:08:48]} (41. Ra8 $11 {remains equal.} Rg8 42. Rxg8+ (42. Bxe4 Bxe4 43. Rxg8+ Kxg8 $11) 42... Kxg8 43. g4 Bxg4 44. Qxe4) 41... Bg6 $1 $17 {[%emt 0:01:58]} 42. Re3 $1 {[%emt 0:07:45]} d5 {[%emt 0:00:34][%cal Bd6d5,Bd5d4,Bd4d3][%mdl 32]} 43. Re2 {[%emt 0:00:12]} (43. a4 $15) 43... d4 $1 $19 {[%emt 0:02:26] White must now prevent ...d3.} 44. Rc2 {[%emt 0:01:31] Inhibits d3.} (44. Bxe4 $2 {perishes.} d3 45. Bxd3 Bxd3 $19) 44... Qd6 {[%emt 0:04:23]} 45. Rd2 {[%emt 0:00:59]} (45. Rc4 {was called for.} d3 46. Qd2) 45... d3 {[%emt 0:00:36]} 46. Qc3 {[%emt 0:04:31]} Re8 {[%emt 0:01:26]} 47. a4 $2 {[%emt 0:04:47]} (47. Bf1) 47... Kh7 $2 {[%emt 0:02:56]} (47... e3 48. fxe3 Rxe3 49. Qc8+ Kh7) 48. Bf1 {[%emt 0:03:32]} Kh8 $2 {[%emt 0:03:10]} (48... Re7 $19 {...Rc7 is the strong threat.} 49. Be2 Re5) 49. a5 $2 {[%emt 0:00:46]} (49. Bg2 $1 $11 {and White is okay.}) 49... e3 $36 {[%emt 0:00:29][%mdl 2048] Black has strong initiative.} 50. fxe3 {[%emt 0:00:04]} Rxe3 {[%emt 0:00:04]} 51. Qc8+ {[%emt 0:02:49]} Kh7 {[%emt 0:00:15]} 52. Qg4 {[%emt 0:00:20] [#]} Re4 {[%emt 0:11:18] Inhibits Qf4.} 53. Rxd3 {[%emt 0:00:46] [#] And now Qxe4 would win.} Qe5 {[%emt 0:00:26]} 54. Qh3 {[%emt 0:00:44] [#]} (54. Qf3 Rxh4+ 55. Kg1) 54... Re2+ $1 {[%emt 0:00:28][%mdl 512] Weighted Error Value: White=0.44/Black=0.32} 0-1

[Event "16th Serbian-ch Women 2022"]
[Site "Bajina Basta"]
[Date "2022.12.12"]
[Round "7.2"]
[White "Vujcic, Milena"]
[Black "Dimitrijevic, Andjela"]
[Result "1-0"]
[ECO "B62"]
[WhiteElo "2029"]
[BlackElo "1993"]
[Annotator "TA"]
[PlyCount "55"]
[EventDate "2022.12.06"]
[EventType "tourn"]
[EventCountry "SRB"]
[SourceTitle "playchess.com"]
[Source "ChessBase"]
[SourceQuality "1"]
[TimeControl "40/5400+30:1800+30"]

{[%evp 12,55,21,0,0,-14,-21,-68,-66,-56,-19,-33,-18,-48,-31,-29,-25,-58,-36,-41,-15,-33,-17,-28,-14,-26,10,8,0,-17,116,119,353,365,359,50,539,529,1439,1313,1251,1251,1359,1231,29986,29987]} 1. e4 {[%emt 0:00:03] ChessBase II} c5 {[%emt 0:00:12]} 2. Nf3 {[%emt 0:00:06]} d6 {[%emt 0:00:17]} 3. d4 {[%emt 0:00:06]} cxd4 {[%emt 0:00:12]} 4. Nxd4 {[%emt 0:00:05]} Nf6 {[%emt 0:00:15]} 5. Nc3 {[%emt 0:00:05]} Nc6 {[%emt 0:00:13]} 6. Bg5 {[%emt 0:00:09]} e6 {[%emt 0:00:26]} 7. f4 {[%emt 0:00:09]} h6 {[%emt 0:09:55] B62: Sicilian: Richter-Rauzer: 6...e6: Unusual White 7th moves.} 8. Bxf6 {[%emt 0:06:46]} Qxf6 {[%emt 0:00:38]} 9. Nxc6 {[%emt 0:00:30]} (9. Bb5 $11 {deserves consideration.} Bd7 10. Bxc6 bxc6 11. O-O) 9... bxc6 $15 {[%emt 0:00:20] Black is slightly better.} 10. Qf3 {[%emt 0:04:13][%cal Oe4e5]} Qd8 {[%emt 0:07:02] [#]} 11. Bc4 $146 {[%emt 0:15:14]} ({Predecessor:} 11. O-O-O Be7 12. g4 Bd7 13. h4 d5 14. exd5 cxd5 15. Nxd5 exd5 16. Qxd5 Qc8 17. Rh3 Bxg4 {½-½ (41) Grokhotov,V-Telman,V Odessa 1972 EXT 2019 [ChessBase II]}) 11... Be7 {[%emt 0:14:08]} ({Don't take} 11... d5 12. exd5 cxd5 13. Nxd5 Qa5+ 14. Qc3 (14. Nc3 Rb8 $11) 14... Qxc3+ 15. Nxc3 $14) 12. O-O {[%emt 0:13:30]} O-O {[%emt 0:06:21]} 13. Kh1 {[%emt 0:03:06]} d5 {[%emt 0:02:24]} 14. Bd3 {[%emt 0:05:34]} Qb6 {[%emt 0:05:39]} 15. Rab1 {[%emt 0:05:08]} a5 {[%emt 0:03:38]} 16. Qg3 {[%emt 0:05:06]} (16. b3 {simplifies} Qc7 17. Na4 Bb7 18. Qe2) 16... Ba6 {[%emt 0:01:14]} 17. Bxa6 {[%emt 0:04:29]} (17. f5 {feels hotter.} Bxd3 18. cxd3 exf5 19. exd5 Bf6 20. Qf3) 17... Qxa6 {[%emt 0:01:29]} 18. f5 {[%emt 0:00:24] Strongly threatening f6.} exf5 {[%emt 0:14:01]} 19. exd5 {[%emt 0:01:38]} cxd5 {[%emt 0:07:38]} 20. Rxf5 {[%emt 0:05:16]} Rab8 {[%emt 0:09:54]} (20... d4 $11 {remains equal.} 21. Nd5 Bd8) 21. Nxd5 $16 {[%emt 0:00:53] White is more active.} Bg5 {[%emt 0:01:03] [#]} (21... Rb7 $16) 22. h4 $1 $18 {[%emt 0:03:50]} Bd2 {[%emt 0:06:08]} 23. Ne7+ $2 {[%emt 0:02:30]} (23. Nf6+ $18 Kh8 24. Nd7) 23... Kh8 $2 {[%emt 0:00:24][%mdl 8192] [#]} ({Better is} 23... Kh7 $14) 24. Rxf7 $3 {[%emt 0:01:48][%csl Gf7][%cal Rg3g7][%mdl 512]} Bc3 {[%emt 0:04:41]} (24... Rg8 25. Nxg8) 25. Rxf8+ {[%emt 0:00:15]} Rxf8 {[%emt 0:00:08]} 26. Ng6+ {[%emt 0:00:06]} Kg8 {[%emt 0:00:10]} 27. Nxf8 {[%emt 0:00:06]} Kxf8 {[%emt 0:01:07]} 28. bxc3 {[%emt 0:00:07] Weighted Error Value: White=0.31/Black=1.15} 1-0